Workbook

Sheet 支出
B1: [イベント名]のイベント予算 | H1: 支出
B3: 支出合計 | G3: 予算 | H3: 実際
G4: =SUM(C11,C19,C25,C32,G11,G19,G24) -> ¥882.00 | H4: =SUM(D11,D19,D25,D32,H11,H19,H24) -> ¥333.00
B6: 会場 | C6: 予算 | D6: 実際 | F6: 軽食 | G6: 予算 | H6: 実際
B7: 会議室、ホール手数料 | C7: ¥500.00 | F7: 食べ物
B8: 会場スタッフ | F8: 飲み物 | G8: ¥20.00
B9: 機器 | F9: テーブルクロス等 | H9: ¥20.00
B10: テーブルと椅子 | F10: スタッフ、心づけ
B11: 集計 | C11: =SUBTOTAL(109,表1[予算]) -> ¥500.00 | D11: =SUBTOTAL(109,表1[実際]) -> ¥0.00 | F11: 集計 | G11: =SUBTOTAL(109,表3[予算]) -> ¥20.00 | H11: =SUBTOTAL(109,表3[実際]) -> ¥20.00
B13: 飾りつけ | C13: 予算 | D13: 実際 | F13: プログラム | G13: 予算 | H13: 実際
B14: 花 | C14: ¥200.00 | D14: ¥300.00 | F14: パフォーマー
B15: キャンドル | F15: スピーカー | G15: ¥30.00
B16: 照明 | F16: 旅費
B17: 風船 | F17: ホテル
B18: 紙 | F18: その他
B19: 集計 | C19: =SUBTOTAL(109,表4[予算]) -> ¥200.00 | D19: =SUBTOTAL(109,表4[実際]) -> ¥300.00 | F19: 集計 | G19: =SUBTOTAL(109,表5[予算]) -> ¥30.00 | H19: =SUBTOTAL(109,表5[実際]) -> ¥0.00
B21: 宣伝 | C21: 予算 | D21: 実際 | F21: 賞品 | G21: 予算 | H21: 実際
B22: グラフィック アート | F22: リボン/銘板/トロフィー
B23: コピー/印刷 | C23: ¥20.00 | F23: プレゼント | G23: ¥100.00
B24: 送料 | F24: 集計 | G24: =SUBTOTAL(109,表7[予算]) -> ¥100.00 | H24: =SUBTOTAL(109,表7[実際]) -> ¥0.00
B25: 集計 | C25: =SUBTOTAL(109,表6[予算]) -> ¥20.00 | D25: =SUBTOTAL(109,表6[実際]) -> ¥0.00
B27: その他 | C27: 予算 | D27: 実際
B28: 電話料金 | D28: ¥13.00
B29: 交通費 | C29: ¥12.00
B30: 事務用具
B31: Fax サービス
B32: 集計 | C32: =SUBTOTAL(109,表8[予算]) -> ¥12.00 | D32: =SUBTOTAL(109,表8[実際]) -> ¥13.00

Sheet 収入
B1: [イベント名]のイベント予算 | G1: 収入
B3: 収入合計 | F3: 予算 | G3: 実際
F4: =SUM(F11, F18, F25, F33) -> ¥1,936.00 | G4: =SUM(G11,G18,G25, G33) -> ¥1,831.00
B6: 入場者
B7: 見積もり数 | C7: 実際の数 | D7: 種類 | E7: 価格 | F7: 収入予算 | G7: 収入実績
B8: 300 | C8: 278 | D8: 大人 | E8: ¥5.00 | F8: =B8*E8 -> ¥1,500.00 | G8: =C8*E8 -> ¥1,390.00
B9: 197 | C9: 195 | D9: 子供 | E9: ¥2.00 | F9: =B9*E9 -> ¥394.00 | G9: =C9*E9 -> ¥390.00
B10: 42 | C10: 51 | D10: その他 | E10: ¥1.00 | F10: =B10*E10 -> ¥42.00 | G10: =C10*E10 -> ¥51.00
B11: 集計 | F11: =SUBTOTAL(109,表9[収入予算]) -> ¥1,936.00 | G11: =SUBTOTAL(109,表9[収入実績]) -> ¥1,831.00
B13: プログラム内の広告
B14: 見積もり数 | C14: 実際の数 | D14: 種類 | E14: 価格 | F14: 収入予算 | G14: 収入実績
B15: 12 | D15: 表/裏表紙 | F15: =B15*E15 -> ¥0.00 | G15: =C15*E15 -> ¥0.00
C16: 158 | D16: 1/2 ページ | F16: =B16*E16 -> ¥0.00 | G16: =C16*E16 -> ¥0.00
B17: 4 | D17: 1/4 ページ | F17: =B17*E17 -> ¥0.00 | G17: =C17*E17 -> ¥0.00
B18: 集計 | F18: =SUBTOTAL(109,表10[収入予算]) -> ¥0.00 | G18: =SUBTOTAL(109,表10[収入実績]) -> ¥0.00
B20: 出展者/出店業者
B21: 見積もり数 | C21: 実際の数 | D21: 種類 | E21: 価格 | F21: 収入予算 | G21: 収入実績
B22: 23 | D22: ブース大 | F22: =B22*E22 -> ¥0.00 | G22: =C22*E22 -> ¥0.00
B23: 354 | D23: ブース中 | F23: =B23*E23 -> ¥0.00 | G23: =C23*E23 -> ¥0.00
B24: 56 | D24: ブース小 | F24: =B24*E24 -> ¥0.00 | G24: =C24*E24 -> ¥0.00
B25: 集計 | F25: =SUBTOTAL(109,表11[収入予算]) -> ¥0.00 | G25: =SUBTOTAL(109,表11[収入実績]) -> ¥0.00
B27: アイテムの販売
B28: 見積もり数 | C28: 実際の数 | D28: 種類 | E28: 価格 | F28: 収入予算 | G28: 収入実績
D29: 項目 | F29: =B29*E29 -> ¥0.00 | G29: =C29*E29 -> ¥0.00
B30: 123 | D30: 項目 | F30: =B30*E30 -> ¥0.00 | G30: =C30*E30 -> ¥0.00
D31: 項目 | F31: =B31*E31 -> ¥0.00 | G31: =C31*E31 -> ¥0.00
B32: 13 | D32: 項目 | F32: =B32*E32 -> ¥0.00 | G32: =C32*E32 -> ¥0.00
B33: 集計 | F33: =SUBTOTAL(109,表12[収入予算]) -> ¥0.00 | G33: =SUBTOTAL(109,表12[収入実績]) -> ¥0.00

Sheet 利益 - 損失の概要​​
B1: [イベント名]のイベント予算 | G1: 利益
G2: 損失の概要
C5: 予算 | D5: 実際
B6: 収入合計 | C6: =収入!F4 -> ¥1,936.00 | D6: =収入!G4 -> ¥1,831.00
B7: 支出合計 | C7: =支出!G4 -> ¥882.00 | D7: =支出!H4 -> ¥333.00
B9: 利益合計 (または損失合計) | C9: =C6-C7 -> ¥1,054.00 | D9: =D6-D7 -> ¥1,498.00
